Cogmind - Beta 15 @@@ ROGUE MODE // 2025.05.15 @ 00:03:03 Player: grayrest Result: Destroyed by as-65144 with Assembled Heavy Rifle Performance ------------- Evolutions (0) 0 Regions Visited (4) 800 Robots Destroyed (23) 115 Value Destroyed (423) 423 Prototype IDs (23) 460 Alien Tech Used (0) 0 Bonus (300) 300 TOTAL SCORE: 2098 Bonus ------- Aligned with FarCom 300 Cogmind --------- Core Integrity 0/250 Matter 280/300 Energy 96/100 System Corruption 0% Temperature Cool (0) Movement Core (50) Location -9/Mines Parts ------- > --- POWER (1) -------- (None) > --- PROPULSION (2) --- (None) > --- UTILITY (2) ------ (None) > --- WEAPON (2) ------- (None) > --- INVENTORY (5) ---- Experimental Sensor Array Seismic Detector Light Assault Rifle Grenade Launcher Rocket Launcher Peak State ------------ > --- POWER ------------ Ion Engine > --- PROPULSION ------- Light Treads Light Treads > --- UTILITY ---------- High-capacity Storage Unit Medium Armor Plating > --- WEAPON ----------- Assault Rifle Light Assault Rifle > --- INVENTORY -------- Ion Engine Light Nuclear Core Structural Scanner Experimental Sensor Array Seismic Detector Improved Targeting Computer Improved Targeting Computer Medium Armor Plating Medium Armor Plating Small Laser Light Assault Rifle Light Assault Rifle Grenade Launcher Rocket Launcher Mining Laser [Rating: 11] Favorites ----------- Power Ion Engine Engine Ion Engine Power Core Light Nuclear Core Propulsion Light Treads Treads Light Treads Utility High-capacity Storage Unit Device Seismic Detector Storage High-capacity Storage Unit Protection Medium Armor Plating Weapon Assault Rifle Ballistic Gun Assault Rifle Special Weapon Mining Laser Build | -11 -10 -10 -10 -9 ------- Run | Yrd Mat Min Exi Min Slots Evolved . | . . . . . Power . | . . . . . Propulsion . | . . . . . Utility . | . . . . . Weapon . | . . . . . Parts Attached 17 | 6 6 . . 5 Power 3 | 1 . . . 2 Engine 2 | 1 . . . 1 Core 1 | . . . . 1 Reactor . | . . . . . Propulsion 2 | 2 . . . . Treads 2 | 2 . . . . Leg . | . . . . . Wheel . | . . . . . Hover . | . . . . . Flight . | . . . . . Utility 8 | 1 4 . . 3 Device 2 | . 1 . . 1 Storage 2 | 1 1 . . . Processor . | . . . . . Hackware . | . . . . . Protection 4 | . 2 . . 2 Artifact . | . . . . . Weapon 4 | 2 2 . . . Energy Gun . | . . . . . Energy Cannon . | . . . . . Ballistic Gun 3 | 2 1 . . . Ballistic Cannon . | . . . . . Launcher . | . . . . . Special Weapon 1 | . 1 . . . Impact Weapon . | . . . . . Slashing Weapon . | . . . . . Piercing Weapon . | . . . . . Special Melee Weapon . | . . . . . Unidentified Prototypes . | . . . . . Parts Lost 9 | . 1 . . 8 Power 2 | . . . . 2 Propulsion 2 | . . . . 2 Utility 3 | . 1 . . 2 Weapon 2 | . . . . 2 Highest Loss Streak 6 | . 1 . . 6 To Critical Strikes . | . . . . . Average Backups 11 | 2 8 12 12 14 Power 1 | . 1 2 2 1 Propulsion . | . . . . . Utility 5 | . 4 5 4 6 Weapon 4 | 1 2 5 6 6 Tool/Special . | . . . . . Unused Backups 11 | . 1 . 1 9 Power . | . . . . . Propulsion . | . . . . . Utility 6 | . 1 . 1 4 Weapon 5 | . . . . 5 Tool/Special . | . . . . . Average Slot Usage (%) 99 | . 99 100 100 99 Engine 13 | . 14 14 14 13 Treads 27 | . 28 28 28 27 Device 5 | . 7 10 14 . Storage 13 | . 13 14 14 13 Protection 8 | . 6 3 . 13 Ballistic Gun 25 | . 24 28 28 24 Special Weapon 2 | . 3 . . 3 Peak Build Rating 11 | 6 9 9 9 11 Average Rating 9 | 5 8 8 8 10 On Entrance 6 | . 6 9 9 8 Naked Turns 2 | . . . . 2 Heaviest Build 55 | 13 55 55 49 55 Greatest Support 40 | 40 40 40 40 40 Greatest Overweight (x) 3 | . 1 1 1 3 Average Overweight (x) . | . . 1 1 1 Largest Inventory Capacity 20 | 8 20 20 20 20 Average Capacity 18 | 6 18 20 20 19 Most Carried 16 | 4 12 13 13 16 Average Carried 11 | 2 8 12 12 14 Final Capacity 20 | 8 20 20 20 5 Final Carried 13 | 4 12 13 12 5 Class Distribution -------------------- 100% | Mutant Dominant Class ---------------- Mutant | -10/Materials Mutant | -10/Mines Mutant | -10/Exiles Mutant | -9/Mines Resources | -11 -10 -10 -10 -9 ----------- Run | Yrd Mat Min Exi Min Matter Collected 666 | 300 224 . . 142 Remotely . | . . . . . Salvage Created 661 | 145 313 . . 203 Parts 49 | 11 23 . . 15 Haulers Intercepted . | . . . . . Recyclers Shooed . | . . . . . Parts Field Recycled . | . . . . . Retrieved Matter . | . . . . . Parts Self-Destructed . | . . . . . Prevented . | . . . . . Kills | -11 -10 -10 -10 -9 ------- Run | Yrd Mat Min Exi Min Combat Hostiles Destroyed 17 | . 10 . . 7 Guns 17 | . 10 . . 7 Classes Destroyed 6 | 2 4 . . . Tunneler 3 | 3 . . . . Recycler 1 | 1 . . . . Operator 1 | . 1 . . . Watcher 1 | . 1 . . . Swarmer 10 | . 6 . . 4 Grunt 7 | . 4 . . 3 Best Kill Streak 5 | 2 5 . . 4 Combat Bots Only 5 | . 5 . . 4 Max Kills in Single Turn 1 | 1 1 . . 1 Gunslinging . | . . . . . Exploded . | . . . . . Melee . | . . . . . Uniques/NPCs Destroyed . | . . . . . Combat | -11 -10 -10 -10 -9 -------- Run | Yrd Mat Min Exi Min Hostile Shots Fired 96 | . 40 . . 56 Missed 15 | . 10 . . 5 Hits 81 | . 30 . . 51 Projectile 81 | . 30 . . 51 AOE 15 | . . . . 15 Critical Strikes 3 | . 1 . . 2 Damage Taken 1246 | . 299 . . 947 Core 255 | . 43 . . 212 Absorbed by Shields . | . . . . . Regen/Repaired (Parts) 248 | . 248 . . . Core Remaining (%) 100 | 100 . . . . Volleys Fired 74 | 10 36 . . 28 Largest 2 | 2 2 . . 2 Hottest 120 | 40 120 . . 40 Shots Fired 147 | 20 71 . . 56 Gun 145 | 20 69 . . 56 Cannon . | . . . . . Launcher . | . . . . . Special 2 | . 2 . . . Kinetic 145 | 20 69 . . 56 Thermal 2 | . 2 . . . Explosive . | . . . . . Electromagnetic . | . . . . . Robot Hit Streak 11 | 5 11 . . 9 Robot Miss Streak 4 | 3 4 . . 2 Penetration Max . | . . . . . Secondary Targets . | . . . . . Shots Hit Robots 85 | 11 38 . . 36 Core Hits 39 | 5 22 . . 12 Critical Kills 2 | . . . . 2 Critical Parts Destroyed . | . . . . . Critical Strikes 2 | . . . . 2 Destroy 2 | . . . . 2 Melee Attacks . | . . . . . Impact . | . . . . . Slashing . | . . . . . Piercing . | . . . . . Sneak Attacks . | . . . . . Combat Hostiles . | . . . . . Follow-up Attacks . | . . . . . Damage Inflicted 904 | 115 415 . . 374 Guns 904 | 115 415 . . 374 Cannons . | . . . . . Explosions . | . . . . . Melee . | . . . . . Ramming . | . . . . . Kinetic 904 | 115 415 . . 374 Thermal . | . . . . . Explosive . | . . . . . Electromagnetic . | . . . . . Impact . | . . . . . Slashing . | . . . . . Piercing . | . . . . . Highest Corruption . | . . . . . Average Corruption . | . . . . . Corruption Purged . | . . . . . Corruption Blocked . | . . . . . Overload Shots . | . . . . . Overflow Damage . | . . . . . Projectiles . | . . . . . Explosions . | . . . . . Melee . | . . . . . Knockbacks . | . . . . . Impact . | . . . . . Kinetic . | . . . . . Secondary . | . . . . . Self-Inflicted Damage . | . . . . . Shots . | . . . . . Rammed . | . . . . . Targets Rammed . | . . . . . Kicked . | . . . . . Crushed . | . . . . . Highest Temperature 58 | . 22 . . 58 Average Temperature 17 | . 8 . . 25 Received Heat Transfer 279 | . 99 . . 180 Siege Activations . | . . . . . Martial Activations . | . . . . . Shielding Activations . | . . . . . Robots Disrupted . | . . . . . Combat Hostiles . | . . . . . Robots Corrupted . | . . . . . Combat Hostiles . | . . . . . Parts Fried . | . . . . . Impact Corruptions . | . . . . . Robots Melted . | . . . . . Combat Hostiles . | . . . . . Parts Melted . | . . . . . Heat Transferred . | . . . . . Parts Sabotaged . | . . . . . Parts Stolen . | . . . . . Parts Stripped . | . . . . . Power Chain Reactions . | . . . . . Alert | -11 -10 -10 -10 -9 ------- Run | Yrd Mat Min Exi Min Maximum Alert Level . | . . . . . Low Security (%) 100 | 100 100 100 . 100 Level 1 . | . . . . . Level 2 . | . . . . . Level 3 . | . . . . . Level 4 . | . . . . . Level 5 . | . . . . . High Security . | . . . . . Max Security . | . . . . . Peak Influence 160 | 5 105 15 . 160 Initial 15 | . . 15 . . Average 24 | 1 22 2 . 31 Influence Increases 556 | 20 286 . . 250 Destroy 0b10 Robot/C 340 | . 200 . . 140 Destroy 0b10 Robot/NC 30 | 20 10 . . . Destroy Leader 62 | . 42 . . 20 Successful Hack 17 | . 17 . . . Destroy Structure 2 | . 2 . . . Lose Combat Pursuer 105 | . 15 . . 90 Influence Decreases 556 | 20 246 40 . 250 Entered New Map 25 | . . 25 . . Time Decay 501 | 20 236 15 . 230 Lost Part 30 | . 10 . . 20 Squads Dispatched 2 | . 2 . . . Investigation 1 | . 1 . . . Extermination . | . . . . . Reinforcement 1 | . 1 . . . Assault . | . . . . . Garrison . | . . . . . Intercept . | . . . . . Searches Triggered . | . . . . . Construction Impeded . | . . . . . Haulers Reinforced . | . . . . . Active Scanning Responses . | . . . . . Cargo Convoy Interrupts . | . . . . . Stealth | -11 -10 -10 -10 -9 --------- Run | Yrd Mat Min Exi Min Distress Signals 1 | . 1 . . . Communications Jammed . | . . . . . Distress Signals . | . . . . . Times Spotted 33 | . 16 . . 17 Peak Tracking Total 7 | . 3 . . 7 Tactical Retreats 3 | . 1 . . 2 Traps | -11 -10 -10 -10 -9 ------- Run | Yrd Mat Min Exi Min Traps Triggered 1 | . 1 . . . Indirectly . | . . . . . Trap Hack Attempts . | . . . . . Triggered . | . . . . . Disarmed . | . . . . . Reprogrammed . | . . . . . Reused . | . . . . . Traps Extracted . | . . . . . Installed . | . . . . . Triggered . | . . . . . Machines | -11 -10 -10 -10 -9 ---------- Run | Yrd Mat Min Exi Min Machines Disabled . | . . . . . Max in Single Turn . | . . . . . Machines Repaired . | . . . . . Machines Dismantled . | . . . . . Machines Sabotaged . | . . . . . Overloaded Fab Kills . | . . . . . Hacking | -11 -10 -10 -10 -9 --------- Run | Yrd Mat Min Exi Min Machines Accessed 9 | . 7 . 2 . Terminals 5 | . 5 . . . Fabricators . | . . . . . Repair Stations 1 | . 1 . . . Recycling Units 1 | . 1 . . . Scanalyzers . | . . . . . Garrison Access . | . . . . . Total Hacks 28 | . 23 . 5 . Successful 17 | . 12 . 5 . Failed 11 | . 11 . . . Catastrophic . | . . . . . Database Lockouts . | . . . . . Manual 14 | . 13 . 1 . Terminals 15 | . 15 . . . Fabricators . | . . . . . Repair Stations 4 | . 4 . . . Recycling Units 4 | . 4 . . . Scanalyzers . | . . . . . Garrison Access . | . . . . . Terminal Hacks 10 | . 5 . 5 . Record 4 | . . . 4 . Robot Analysis 1 | . 1 . . . Branch Access Points 1 | . 1 . . . Terminal Index 1 | . 1 . . . Repair Station Index 1 | . 1 . . . Hauler Manifests 1 | . 1 . . . Proto ID Catalog 1 | . . . 1 . Fabricator Hacks . | . . . . . Repair Station Hacks 2 | . 2 . . . Scan Component 1 | . 1 . . . Repair 1 | . 1 . . . Recycling Unit Hacks 2 | . 2 . . . Report Inventory 1 | . 1 . . . Retrieve Components 1 | . 1 . . . Scanalyzer . | . . . . . Garrison Access Hacks . | . . . . . Unauthorized Hacks 3 | . 3 . . . Terminals 3 | . 3 . . . Botnet 3 | . 3 . . . Fabricators . | . . . . . Repair Stations . | . . . . . Recycling Units . | . . . . . Scanalyzers . | . . . . . Garrison Access . | . . . . . Data Cores Recovered . | . . . . . Used . | . . . . . Hacking Detections 5 | . 5 . . . Full Trace Events . | . . . . . Feedback Events . | . . . . . Feedback Blocked . | . . . . . Robot Schematics Acquired . | . . . . . Robots Built . | . . . . . Authchips . | . . . . . Time . | . . . . . Total Robot Build Rating . | . . . . . Part Schematics Acquired . | . . . . . Parts Built . | . . . . . Authchips . | . . . . . Time . | . . . . . Total Part Build Rating . | . . . . . Parts Repaired 1 | . 1 . . . Time 26 | . 26 . . . Parts Recycled . | . . . . . Recycled Matter . | . . . . . Retrieved Matter . | . . . . . Retrieved Components 3 | . 3 . . . Parts Scanalyzed . | . . . . . Part Schematics Acquired . | . . . . . Parts Damaged . | . . . . . Bothacking | -11 -10 -10 -10 -9 ------------ Run | Yrd Mat Min Exi Min Used RIF Installer . | . . . . . Robots Hacked . | . . . . . Non-combat . | . . . . . Combat . | . . . . . Robot Hacks Applied . | . . . . . Relay Couplers Released . | . . . . . Fabnet Peak Effective % . | . . . . . Robots Rewired . | . . . . . Allies Hacked . | . . . . . Hacks Repelled . | . . . . . Allies | -11 -10 -10 -10 -9 -------- Run | Yrd Mat Min Exi Min Total Allies . | . . . . . Largest Group . | . . . . . Highest-Rated Group . | . . . . . Highest-Rated Ally . | . . . . . Total Orders . | . . . . . Ally Attacks . | . . . . . Total Damage . | . . . . . Kills . | . . . . . Allies Corrupted . | . . . . . Allies Melted . | . . . . . Intel | -11 -10 -10 -10 -9 ------- Run | Yrd Mat Min Exi Min Active Infowar (turns) 1241 | . 518 143 528 52 Structural 47 | . . . . 47 Seismic 1194 | . 518 143 528 5 Robot Analysis Total 1 | . 1 . . . Derelict Logs Recovered 1 | . . . . 1 Drone Launches . | . . . . . Drone Recoveries . | . . . . . Exploration | -11 -10 -10 -10 -9 ------------- Run | Yrd Mat Min Exi Min Turns Passed 3131 | 162 994 172 528 1275 Spaces Moved 1145 | 79 372 71 220 403 Core 10 | 4 . . . 6 Treads 1135 | 75 372 71 220 397 Legs . | . . . . . Wheels . | . . . . . Hover . | . . . . . Flight . | . . . . . Fastest Speed 50 | 50 160 240 240 50 Average Speed 229 | 154 226 240 240 237 Slowest Speed 320 | 160 240 240 240 320 Overloaded Moves . | . . . . . Propulsion Burnouts . | . . . . . Robots Hopped . | . . . . . Potential Cave-ins . | . . . . . Cave-ins Triggered . | . . . . . Exploration Rate (%) 41 | 6 68 16 60 55 Regions Visited 4 Branch Regions 3 Pre-discovered Areas 1 | . . . 1 . Known Exits Taken 1 | . 1 . . . Unknown Exits Taken 3 | 1 . 1 1 . Scrap Searched 2 | . . . . 2 Spaces Dug 2 | . 2 . . . Terrain Destroyed 2 | . 2 . . . Melee . | . . . . . Projectile 2 | . 2 . . . AOE . | . . . . . Terrain Rammed . | . . . . . Walls Destroyed . | . . . . . Machines Disabled . | . . . . . Actions | -11 -10 -10 -10 -9 --------- Run | Yrd Mat Min Exi Min Total 1512 | 98 453 73 221 667 Wait 245 | . 23 1 . 221 Move 1141 | 78 371 70 219 403 Hop . | . . . . . Pick Up 22 | 4 12 1 . 5 Fast Attach 8 | 6 2 . . . Attach 4 | . 1 . . 3 Detach . | . . . . . Swap 12 | . 6 1 . 5 Drop 5 | . 2 . 1 2 Fire 74 | 10 36 . . 28 Melee . | . . . . . Ram . | . . . . . Kick . | . . . . . Crush . | . . . . . Escape Stasis . | . . . . . Rewire 1 | . . . 1 . Trap . | . . . . . Miscellaneous . | . . . . . Route ------- -11/Scrapyard -10/Materials (discovered 3 exits: [*Mat x2] / *Min) -10/Mines -10/Exiles -9/Mines History --------- Turn | Location | Event 6 | -11/Scrapyard | Discovered new exit (range 15) 163 | -11/Scrapyard | Entered Materials 164 | -10/Materials | Met a group of wandering Federalists 307 | -10/Materials | Build established: Mutant 385 | -10/Materials | Repaired Hcp. Storage Unit 535 | -10/Materials | Discovered new exit (range 4) 882 | -10/Materials | Discovered new exit (range 10) 908 | -10/Materials | Identified exit to Mines 1157 | -10/Materials | Entered Mines 1236 | -10/Mines | Received a Rocket Launcher from a helpful Derelict 1317 | -10/Mines | Deemed a non-threat by the Exiles lab entrance 1319 | -10/Mines | Discovered new exit (range 5) 1329 | -10/Mines | Entered Exiles 1387 | -10/Exiles | Met 8R-AWN 1428 | -10/Exiles | Met EX-HEX 1508 | -10/Exiles | Met EX-BIN 1537 | -10/Exiles | Aligned with FarCom system 1539 | -10/Exiles | Given EX-Vault access code 1607 | -10/Exiles | Opened EX-Vault 1672 | -10/Exiles | Warned to stay clear of 0b10 Research branches 1737 | -10/Exiles | Met EX-DEC 1749 | -10/Exiles | Learned location of Zion (-6) 1830 | -10/Exiles | Discovered new exit (range 12) 1857 | -10/Exiles | Entered Mines 2122 | -9/Mines | Found a damaged Exp. Sensor Array with a note attached 2127 | -9/Mines | Found Prototype Device 3096 | -9/Mines | Assembled infested the area 3097 | -9/Mines | Learned location of 1 exit from Materials 3101 | -9/Mines | Assisted by a Guerilla fighting off Assembled 3128 | -9/Mines | Core integrity fell below 50% 3132 | -9/Mines | Core integrity fell below 20% 3132 | -9/Mines | Destroyed by as-65144 with Assembled Heavy Rifle Last Messages --------------- 03119_ U-05 Engineer builds a Wall. 03120_ U-05 Engineer lays Concrete. 03120_ Med. Armor Plating destroyed. 03121_ The unstable cave ceiling collapses. 03121_ U-05 Engineer lays Concrete. 03122_ U-05 Engineer builds a Wall. 03123_ Mining Laser destroyed. 03124_ U-05 Engineer builds a Wall. 03124_ Lgt. Treads destroyed. 03125_ The unstable cave ceiling collapses. 03125_ Assault Rifle destroyed. 03126_ The unstable cave ceiling collapses. 03126_ Dropped Hcp. Storage Unit. 03126_ U-05 Engineer lays Concrete. 03127_ The unstable cave ceiling collapses. 03127_ U-05 Engineer lays Concrete. 03128_ U-05 Engineer builds a Wall. 03128_ Lgt. Nuclear Core destroyed. 03130_ Dropped Med. Armor Plating. 03131_ The unstable cave ceiling collapses. Map ----- +----------------------------------------------------+ | ???????????????????????????????????????????? | | #####??????????????????????????????????????? | | # ##?????????????????????????????????????? | | #?????????????????????????????????????? | | #?????????????????????????????????????? | | #?????????????????????????????????????? | | #??????????????????????????????????????? | | ##??????????????????????????????????????? | | "" #????????????????????????##?????????????? | | "" ##????#########?????????? ?????????????? | | "" ##??# ##????????? ?????????????? | | "" ### #?????????$#?????????????? | | #?????????a#?????????????? | | # #?????????a#?????????????? | | ### #??????????a#?????????????? | | ??## #####???#### ##????????????? | | ???##### ############# ##???????????? | | ????????# ##??### #### ##??????????? | | ?????????###???## $ ## [ #??????????? | | ###????????????## #??????????? | | ##???????????### ! #??????????? | | #????????????### #??????????? | | #?????????????### #??????????? | | ##????????????### = #??????????? | | #????????????### ##??????????? | | ##??????????### d = @ #???????????? | | #??????????## t ## # ###???????????? | | #??????????### #####?????????????? | | ##????#####?## %d ###???????????????? | | ##?????######### ## % ##???????????????? | | #??????## #### #???????????????? | | #??????## ### ##???????????????? | | #??????### ## ### ##" ??????????????? | | ######??### ####### ###??????????????? | | #??### ########### "##??????????????? | | #### #??## ######????? ##???????????????? | | ???# #?### ###????????? ##???????????????? | | ??## #### ####????????? ##???????????????? | | ??# ####????????????????????????????? | | ?# ####?????????????????????????????? | | ?# ###???????????????????????????????? | | ?# ####????????????????????????????????? | | ?# ####?????????????????????????????????? | | # ##???????????????????????????????????? | | ????????????????????????????????????? | | ????????????????????????????????????? | | ####????????????????????????????????????? | | ###????????????????????????????????????????? | | ###????????????????????????????????????????? | | ???????????????????????????????????????????? | +----------------------------------------------------+ Best States ------------- Heat Dissipation 25 Energy Generation 10 Energy Capacity 250 Matter Stores 300 Matter Capacity 300 Sight Range 16 Terrain Scan Density 10 Armor Coverage 225 Evasion (%) 40 Recoil Reduction 2 Item Schematics ----------------- None Robot Schematics ------------------ None Fabricated ------------ Nothing Repaired ---------- Hcp. Storage Unit | 50% | -10/Materials Alien Tech Used ----------------- None Achievements -------------- None Challenges ------------ None Game ------ Seed PointMicroExoskeleton Manual? 0 Play Time 00:22:48 Cumulative 60.9 hours Start 2025.05.14 @ 23:36:58 End 2025.05.15 @ 00:03:03 Sessions 1 Manual Loads 0 Difficulty Rogue Special Mode None Game No. 66 Rogue 66 Adventurer 0 Explorer 0 Win Type - Total 1 Types 1/0/0/0/0/0/0/0/0/0 Lore% 21 Gallery% 30 Achievement% 26 Wizard Run 0 Options --------- Layout 1 ASCII 0 Keyboard 0 Movement Numpad Keybinds 0 Fullscreen 2 Font 32/SmallcapsGlow Map View 50x35 Zoom Use 0% Tactical HUD 1 Map Filters NONE Filters NONE Steam 1 RUN: 1f805efd-32e4-49c5-93f8-e84d9cc85299